Cogmind - Beta 13 @@@ ROGUE MODE // 2024.06.23 @ 15:17:41 Player: CanadianCogs Result: Destroyed by S-10 Pest with Light Assault Rifle Performance ------------- Evolutions (2) 1000 Regions Visited (3) 600 Robots Destroyed (37) 185 Value Destroyed (1020) 1020 Prototype IDs (3) 60 Alien Tech Used (0) 0 Bonus (0) 0 TOTAL SCORE: 2865 Bonus ------- None Cogmind --------- Core Integrity 0/550 Matter 28/300 Energy 80/100 System Corruption 3% Temperature Cool (0) Movement Treading (160) Location -8/Materials Parts ------- > --- POWER (1) -------- (None) > --- PROPULSION (4) --- Improved Treads Improved Treads Improved Treads Improved Treads > --- UTILITY (4) ------ Improved Heat Sink Medium Storage Unit Signal Interpreter Reflective Plating > --- WEAPON (2) ------- Proton Missile Launcher > --- INVENTORY (10) --- Improved Terrain Scan Processor Melee Analysis Suite Advanced Assault Cannon Advanced Assault Cannon Advanced Assault Cannon Advanced Assault Cannon Proton Missile Launcher Proton Missile Launcher Datajack Scythe Peak State ------------ > --- POWER ------------ Improved Ion Engine > --- PROPULSION ------- Improved Treads Improved Treads Improved Treads Improved Treads > --- UTILITY ---------- Improved Heat Sink Medium Storage Unit Signal Interpreter Reflective Plating > --- WEAPON ----------- Proton Missile Launcher Proton Missile Launcher > --- INVENTORY -------- Improved Terrain Scan Processor Melee Analysis Suite Advanced Assault Cannon Advanced Assault Cannon Advanced Assault Cannon Advanced Assault Cannon Proton Missile Launcher Proton Missile Launcher Datajack Scythe [Rating: 29] Favorites ----------- Power Cooled Ion Engine Engine Cooled Ion Engine Propulsion Hover Unit Treads Improved Treads Wheel Compact Wheel Hover Unit Hover Unit Utility Medium Storage Unit Device Seismic Detector Storage Medium Storage Unit Processor Signal Interpreter Protection Hardened Light Armor Plating Weapon Heavy Assault Rifle Energy Gun EM Pulse Gun Ballistic Gun Heavy Assault Rifle Launcher Mini Grenade Launcher Build | -11 -10 -9 -8 ------- Run | Yrd Mat Mat Mat Slots Evolved 4 | . . 2 2 Power . | . . . . Propulsion 2 | . . 2 . Utility 2 | . . . 2 Weapon . | . . . . Parts Attached 57 | 6 2 17 32 Power 6 | 1 1 1 3 Engine 6 | 1 1 1 3 Core . | . . . . Reactor . | . . . . Propulsion 23 | 2 . 9 12 Treads 8 | . . 1 7 Leg . | . . . . Wheel 4 | 2 . 2 . Hover 11 | . . 6 5 Flight . | . . . . Utility 11 | 2 . 1 8 Device 4 | 1 . . 3 Storage 3 | 1 . 1 1 Processor 1 | . . . 1 Hackware . | . . . . Protection 3 | . . . 3 Artifact . | . . . . Weapon 17 | 1 1 6 9 Energy Gun 4 | 1 . 3 . Energy Cannon . | . . . . Ballistic Gun 7 | . . 3 4 Ballistic Cannon . | . . . . Launcher 6 | . 1 . 5 Special Weapon . | . . . . Impact Weapon . | . . . . Slashing Weapon . | . . . . Piercing Weapon . | . . . . Special Melee Weapon . | . . . . Unidentified Prototypes 3 | . . 1 2 Corrupted Parts 2 | . . 2 . System Corruption 2 | . . 2 . Parts Lost 16 | . . 3 13 Power 3 | . . 1 2 Propulsion 6 | . . 1 5 Utility 3 | . . . 3 Weapon 4 | . . 1 3 Highest Loss Streak 5 | . . 2 5 To Critical Strikes 1 | . . . 1 Average Slot Usage (%) 87 | . 85 93 83 Engine 9 | . 14 10 8 Treads 8 | . . 1 14 Wheel 6 | . 28 8 . Hover 16 | . . 29 9 Device 10 | . 14 11 9 Storage 10 | . 14 11 9 Processor 4 | . . . 8 Protection 2 | . . . 5 Energy Gun 2 | . 14 2 . Ballistic Gun 10 | . . 17 7 Launcher 5 | . . . 10 Naked Turns . | . . . . Heaviest Build 37 | 13 13 25 37 Greatest Support 92 | 32 32 48 92 Greatest Overweight (x) 4 | . . 4 3 Average Overweight (x) . | . . . . Largest Inventory Capacity 10 | 8 8 10 10 Average Capacity 9 | 7 8 9 10 Most Carried 10 | 4 8 9 10 Average Carried 8 | 1 7 7 9 Final Capacity 10 | 8 8 10 10 Final Carried 10 | 2 8 9 10 Class Distribution -------------------- 62% | Mutant 37% | Scavenger-Mutant Dominant Class ---------------- Mutant | -10/Materials Scavenger-Mutant | -9/Materials Mutant | -8/Materials Resources | -11 -10 -9 -8 ----------- Run | Yrd Mat Mat Mat Matter Collected 978 | 257 23 228 470 Remotely . | . . . . Salvage Created 1118 | 29 28 485 576 Parts 72 | 5 3 37 27 Haulers Intercepted 3 | . . 2 1 Recyclers Shooed 3 | . . 1 2 Parts Field Recycled . | . . . . Retrieved Matter . | . . . . Parts Self-Destructed . | . . . . Prevented . | . . . . Kills | -11 -10 -9 -8 ------- Run | Yrd Mat Mat Mat Combat Hostiles Destroyed 25 | . . 7 18 Melee 3 | . . . 3 Guns 11 | . . 5 6 AOE 11 | . . 2 9 Classes Destroyed 10 | 1 1 5 3 Worker 2 | . . 2 . Tunneler 2 | 1 . . 1 Hauler 3 | . . 2 1 Recycler 2 | . . 1 1 Mechanic 1 | . . . 1 Watcher 2 | . 1 1 . Swarmer 6 | . . . 6 Grunt 14 | . . 6 8 Sentry 4 | . . 1 3 Hunter 1 | . . . 1 Best Kill Streak 6 | 1 1 6 6 Combat Bots Only 5 | . . 3 5 Max Kills in Single Turn 4 | 1 1 4 2 Gunslinging . | . . . . Exploded 2 | . . 2 2 Melee 1 | . . . 1 Uniques/NPCs Destroyed . | . . . . Combat | -11 -10 -9 -8 -------- Run | Yrd Mat Mat Mat Hostile Shots Fired 241 | . 20 14 207 Missed 61 | . 8 5 48 Damage Taken 2710 | . 86 299 2325 Core 627 | . 8 67 552 Absorbed by Shields . | . . . . Ignored by Resistances 42 | . . . 42 Regen/Repaired (Parts) 145 | . . . 145 Core Remaining (%) 93 | 100 96 83 . Volleys Fired 84 | 6 1 29 48 Largest 2 | 1 1 2 2 Hottest 90 | 40 40 90 60 Shots Fired 157 | 6 1 53 97 Gun 139 | 6 1 53 79 Cannon . | . . . . Launcher 18 | . . . 18 Special . | . . . . Kinetic 119 | . . 40 79 Thermal 7 | . . 7 . Explosive 17 | . . . 17 Electromagnetic 14 | 6 1 6 1 Robot Hit Streak 10 | 3 2 6 10 Robot Miss Streak 4 | 1 . 4 4 Penetration Max . | . . . . Secondary Targets . | . . . . Shots Hit Robots 100 | 4 1 29 66 Core Hits 61 | 1 1 17 42 Critical Kills . | . . . . Critical Parts Destroyed 1 | . . . 1 Critical Strikes 1 | . . . 1 Destroy 1 | . . . 1 Melee Attacks . | . . . . Impact . | . . . . Slashing . | . . . . Piercing . | . . . . Sneak Attacks . | . . . . Combat Hostiles . | . . . . Follow-up Attacks . | . . . . Damage Inflicted 2900 | 52 24 636 2188 Guns 1386 | 52 24 425 885 Cannons . | . . . . Explosions 1438 | . . 211 1227 Melee . | . . . . Ramming 76 | . . . 76 Kinetic 1212 | . . 327 885 Thermal 57 | . . 57 . Explosive 1438 | . . 211 1227 Electromagnetic 117 | 52 24 41 . Impact . | . . . . Slashing . | . . . . Piercing . | . . . . Highest Corruption 3 | . . 2 3 Average Corruption 2 | . . 1 2 Corruption Purged . | . . . . Corruption Blocked . | . . . . Effects 44 | . . 20 24 Message Errors 12 | . . 7 5 Matter Fused 10 | . . 4 6 Heat Flow Errors 3 | . . 1 2 Energy Discharges 8 | . . 4 4 Parts Fused 1 | . . 1 . Data Loss (minor) 3 | . . 1 2 Data Loss (major) 3 | . . 1 2 Misfires 3 | . . 1 2 Alerts 1 | . . . 1 Overload Shots . | . . . . Overflow Damage 70 | . . 12 58 Projectiles . | . . . . Explosions 70 | . . 12 58 Melee . | . . . . Knockbacks . | . . . . Impact . | . . . . Kinetic . | . . . . Secondary . | . . . . Self-Inflicted Damage 500 | . . 161 339 Shots 11 | . . 2 9 Rammed 13 | . . . 13 Targets Rammed 16 | . . . 16 Kicked . | . . . . Crushed 3 | . . . 3 Highest Temperature 271 | . . 133 271 Average Temperature 47 | . . 25 77 Received Heat Transfer 837 | . . 63 774 Siege Activations . | . . . . Robots Corrupted . | . . . . Combat Hostiles . | . . . . Parts Fried . | . . . . Impact Corruptions . | . . . . Robots Melted . | . . . . Combat Hostiles . | . . . . Parts Melted . | . . . . Heat Transferred 148 | . . 148 . Parts Sabotaged . | . . . . Parts Stolen . | . . . . Parts Stripped . | . . . . Power Chain Reactions . | . . . . Alert | -11 -10 -9 -8 ------- Run | Yrd Mat Mat Mat Peak Influence 310 | 5 55 162 310 Initial 22 | . 3 22 . Average 103 | . 38 53 161 Maximum Alert Level 1 | . . . 1 Low Security (%) 81 | 100 100 100 62 Level 1 18 | . . . 37 Level 2 . | . . . . Level 3 . | . . . . Level 4 . | . . . . Level 5 . | . . . . High Security . | . . . . Max Security . | . . . . Squads Dispatched 6 | . . 3 3 Investigation 6 | . . 3 3 Extermination . | . . . . Reinforcement . | . . . . Assault . | . . . . Garrison . | . . . . Intercept . | . . . . Searches Triggered . | . . . . Construction Impeded . | . . . . Haulers Reinforced . | . . . . Active Scanning Responses . | . . . . Cargo Convoy Interrupts . | . . . . Stealth | -11 -10 -9 -8 --------- Run | Yrd Mat Mat Mat Distress Signals 3 | . . 2 1 Communications Jammed . | . . . . Distress Signals . | . . . . Times Spotted 59 | . 7 12 40 Peak Tracking Total 8 | . 4 5 8 Tactical Retreats 5 | . 1 1 3 Traps | -11 -10 -9 -8 ------- Run | Yrd Mat Mat Mat Traps Triggered 2 | . . 1 1 Indirectly . | . . . . Trap Hack Attempts . | . . . . Triggered . | . . . . Disarmed . | . . . . Reprogrammed . | . . . . Reused . | . . . . Traps Extracted . | . . . . Installed . | . . . . Triggered . | . . . . Machines | -11 -10 -9 -8 ---------- Run | Yrd Mat Mat Mat Machines Disabled 5 | . . 4 1 Max in Single Turn 3 | . . 3 1 Machines Repaired . | . . . . Machines Dismantled . | . . . . Machines Sabotaged . | . . . . Overloaded Fab Kills . | . . . . Hacking | -11 -10 -9 -8 --------- Run | Yrd Mat Mat Mat Machines Accessed 13 | . 1 6 6 Terminals 7 | . 1 4 2 Fabricators . | . . . . Repair Stations 3 | . . 1 2 Recycling Units . | . . . . Scanalyzers 3 | . . 1 2 Garrison Access . | . . . . Total Hacks 55 | . 1 22 32 Successful 32 | . 1 10 21 Failed 22 | . . 11 11 Catastrophic 5 | . . 3 2 Database Lockouts 1 | . . 1 . Manual 29 | . 1 18 10 Terminals 28 | . 1 17 10 Fabricators . | . . . . Repair Stations 13 | . . 2 11 Recycling Units . | . . . . Scanalyzers 14 | . . 3 11 Garrison Access . | . . . . Terminal Hacks 6 | . . 3 3 Robot Schematic 6 | . . 3 3 Fabricator Hacks . | . . . . Repair Station Hacks 8 | . . . 8 Scan Component 4 | . . . 4 Repair 4 | . . . 4 Recycling Unit Hacks . | . . . . Scanalyzer 11 | . . 2 9 Insert Component 5 | . . 1 4 Analyze 6 | . . 1 5 Garrison Access Hacks . | . . . . Unauthorized Hacks 7 | . 1 5 1 Terminals 6 | . 1 4 1 Botnet 6 | . 1 4 1 Fabricators . | . . . . Repair Stations . | . . . . Recycling Units . | . . . . Scanalyzers 1 | . . 1 . Extract 1 | . . 1 . Garrison Access . | . . . . Data Cores Recovered . | . . . . Used . | . . . . Hacking Detections 11 | . . 6 5 Full Trace Events 5 | . . 3 2 Feedback Events 1 | . . . 1 Corruption 1 | . . . 1 Feedback Blocked . | . . . . Robot Schematics Acquired 6 | . . 3 3 Robots Built . | . . . . Authchips . | . . . . Time . | . . . . Total Robot Build Rating . | . . . . Part Schematics Acquired 6 | . . 2 4 Parts Built . | . . . . Authchips . | . . . . Time . | . . . . Total Part Build Rating . | . . . . Parts Repaired 4 | . . . 4 Time 141 | . . . 141 Parts Recycled . | . . . . Recycled Matter . | . . . . Retrieved Matter . | . . . . Retrieved Components . | . . . . Parts Scanalyzed 5 | . . 1 4 Part Schematics Acquired 5 | . . 1 4 Parts Damaged . | . . . . Bothacking | -11 -10 -9 -8 ------------ Run | Yrd Mat Mat Mat Used RIF Installer . | . . . . Robots Hacked . | . . . . Non-combat . | . . . . Combat . | . . . . Robot Hacks Applied . | . . . . Relay Couplers Released . | . . . . Fabnet Peak Effective % . | . . . . Robots Rewired . | . . . . Allies Hacked . | . . . . Hacks Repelled . | . . . . Allies | -11 -10 -9 -8 -------- Run | Yrd Mat Mat Mat Total Allies . | . . . . Largest Group . | . . . . Highest-Rated Group . | . . . . Highest-Rated Ally . | . . . . Total Orders . | . . . . Ally Attacks . | . . . . Total Damage . | . . . . Kills . | . . . . Allies Corrupted . | . . . . Allies Melted . | . . . . Intel | -11 -10 -9 -8 ------- Run | Yrd Mat Mat Mat Robot Analysis Total . | . . . . Derelict Logs Recovered . | . . . . Drone Launches . | . . . . Drone Recoveries . | . . . . Exploration | -11 -10 -9 -8 ------------- Run | Yrd Mat Mat Mat Turns Passed 4039 | 85 363 1622 1969 Spaces Moved 1896 | 63 194 630 1009 Core 13 | 6 . 2 5 Treads 571 | . . . 571 Legs . | . . . . Wheels 404 | 57 194 153 . Hover 908 | . . 475 433 Flight . | . . . . Fastest Speed 48 | 50 100 48 48 Average Speed 114 | 95 100 62 150 Slowest Speed 250 | 100 100 250 240 Overloaded Moves . | . . . . Propulsion Burnouts . | . . . . Robots Hopped . | . . . . Cave-ins Triggered . | . . . . Exploration Rate (%) 28 | 4 25 31 52 Regions Visited 3 Branch Regions . Pre-discovered Areas . | . . . . Known Exits Taken . | . . . . Unknown Exits Taken 3 | 1 1 1 . Scrap Searched . | . . . . Spaces Dug . | . . . . Terrain Destroyed 160 | . . 32 128 Melee . | . . . . Projectile . | . . . . AOE 160 | . . 32 128 Terrain Rammed . | . . . . Walls Destroyed . | . . . . Machines Disabled . | . . . . Actions | -11 -10 -9 -8 --------- Run | Yrd Mat Mat Mat Total 3619 | 82 362 1808 1367 Wait 1466 | . 157 1111 198 Move 1893 | 62 193 629 1009 Hop . | . . . . Pick Up 55 | 8 7 10 30 Fast Attach 19 | . . 5 14 Attach 30 | 6 2 10 12 Detach 7 | . 1 2 4 Swap 8 | . . 2 6 Drop 41 | . 1 10 30 Fire 84 | 6 1 29 48 Melee . | . . . . Ram 4 | . . . 4 Kick . | . . . . Crush 12 | . . . 12 Escape Stasis . | . . . . Rewire . | . . . . Trap . | . . . . Miscellaneous . | . . . . Route ------- -11/Scrapyard -10/Materials -9/Materials (discovered 2 exits: *Mat / [*Sto]) -8/Materials History --------- Turn | Location | Event 19 | -11/Scrapyard | Discovered new exit (range 16) 86 | -11/Scrapyard | Entered Materials 234 | -10/Materials | Discovered new exit (range 15) 308 | -10/Materials | Build established: Mutant 449 | -10/Materials | Entered another Materials area 449 | -9/Materials | Evolved 2 slots: Propulsion x2 1019 | -9/Materials | Build established: Scavenger-Mutant 1475 | -9/Materials | Discovered new exit (range 5) 1500 | -9/Materials | Discovered new exit (range 5) 2046 | -9/Materials | Central database locked down 2071 | -9/Materials | Entered another Materials area 2071 | -8/Materials | Evolved 2 slots: Utility x2 2248 | -8/Materials | Lost 3 parts (2n1u) 2425 | -8/Materials | Repaired Imp. Hover Unit 2459 | -8/Materials | Repaired Hvy. Assault Rifle 2501 | -8/Materials | Build established: Mutant 2615 | -8/Materials | Repaired Hover Unit 2671 | -8/Materials | Repaired Cld. Ion Engine 2889 | -8/Materials | Core integrity fell below 50% 2919 | -8/Materials | Lost 5 parts (1p2n2w) 2926 | -8/Materials | Core integrity fell below 20% 4040 | -8/Materials | Destroyed by S-10 Pest with Light Assault Rifle Last Messages --------------- Tier: 3 Schematic downloaded. >>Schematic(O-16 Technician) Downloading schematic... O-16 Technician Tier: 1 Schematic downloaded. 03870_ ALERT: Suspicious activity at Terminal M002. Dispatching Investigation squad. 03879_ MBLLKRUBGFXE5XHXR5:HFTPU7M,54RMS HLEMF 03895_ Acquired 8 matter. 03919_ System corrupted: Component data lost. 03986_ T-07 Excavator is excavating. 03996_ U-05 Engineer lays Concrete. 03999_ T-07 Excavator is excavating. 04000_ U-05 Engineer lays Concrete. 04017_ Slammed into Y-45 Defender. 04025_ Imp. Ion Engine destroyed. 04026_ S-10 Pest destroyed. 04040_ Proton Missile Launcher destroyed. Map ----- +----------------------------------------------------+ | + """ #??????????????????????????? | | ################ """ #??????????????????????????? | | ???????????????# """ #??????????????????????????? | | ???????????????########??????????????????????????? | | ?????????????????????????????????????????????????? | | ?????????????????????????????????????????????????? | | ?????????????????????????????????????????????????? | | ?????????????????????????????????????????????????? | | ?????????????????????????????????????????????????? | | ?????????????????????????????????????????????????? | | ?????????????????###?????????????????????????????? | | ????????????????? #?????????????????????????????? | | ???????????????? !#?????????????????????????????? | | ??????????? """"" #####?????????????????????????? | | ????????????""""" # |#?????????????????????????? | | ????????????""""" #! #?????????????????????????? | | ?????????????""" ?# #?????????????????????????? | | ????????????? ?# " #?????????????????????????? | | ##???????????? ??# T #?????????????????????????? | | # ###????????? ??# " #?????????????????????????? | | # #???????###+#### ########??????????????????? | | ## ########## ###+### #??????????????????? | | s #??????????????????? | | %[ s #??????????????????? | | = #??????????????????? | | ############# #######@ #??????????????????? | | ????????????## ##?????## ##??????????????????? | | ?????????????# #???????# #???????????????????? | | ?????????????# #???????# #???????????????????? | | ?????????????# +???????# #???????????????????? | | ?????????????# # ??????# #???????????????????? | | ?????????????# # ?????# #???????????????????? | | ?????????????# #? ????# #???????????????????? | | ?????????????# #? "???? #???????????????????? | | ?????????????# #??##???? #???????????????????? | | ?????????????# #???????? #???????????????????? | | ?????????????? #???????? #???????????????????? | | ?????????????? ???????? #???????????????????? | | ?????????????????????????? +???????????????????? | | ?????????????????????????? ????????????????????? | | ?????????????????????????????????????????????????? | | ?????????????????????????????????????????????????? | | ?????????????????????????????????????????????????? | | ?????????????????????????????????????????????????? | | ?????????????????????????????????????????????????? | | ?????????????????????????????????????????????????? | | ?????????????????????????????????????????????????? | | ?????????????????????????????????????????????????? | | ?????????????????????????????????????????????????? | | ?????????????????????????????????????????????????? | +----------------------------------------------------+ Best States ------------- Heat Dissipation 45 Energy Generation 14 Energy Capacity 280 Matter Stores 300 Matter Capacity 300 Sight Range 16 Robot Scan Range 14 Terrain Scan Density 10 Armor Coverage 150 Resistance: TH 10 Evasion (%) 63 Recoil Reduction 4 Item Schematics ----------------- Hover Unit | -9/Materials | Scanalyzed Plasma Cutter | -9/Materials | Extracted Imp. Hover Unit | -8/Materials | Scanalyzed Reaction Control System | -8/Materials | Scanalyzed Rocket Launcher | -8/Materials | Scanalyzed Cld. Ion Engine | -8/Materials | Scanalyzed Robot Schematics ------------------ G-34 Mercenary | -9/Materials | Hacked S-10 Pest | -9/Materials | Hacked W-16 Scout | -9/Materials | Hacked Y-45 Defender | -8/Materials | Hacked O-24 Administrator | -8/Materials | Hacked O-16 Technician | -8/Materials | Hacked Fabricated ------------ Nothing Alien Tech Used ----------------- None Achievements -------------- None Challenges ------------ None Game ------ Seed BurstHugeGreatsword Manual? 0 Play Time 00:58:06 Cumulative 41.5 hours Start 2024.06.23 @ 14:37:33 End 2024.06.23 @ 15:17:41 Sessions 1 Manual Loads 0 Difficulty Rogue Special Mode None Game No. 73 Rogue 73 Adventurer 0 Explorer 0 Win Type - Total 0 Types 0/0/0/0/0/0/0/0/0 Lore% 23 Gallery% 30 Achievement% 27 Wizard Run 0 Options --------- Layout 0 ASCII 0 Keyboard 0 Movement Mouse Keybinds 0 Fullscreen 2 Font 18/SmallcapsGlow Map View 38x25 Zoom Use 91% Tactical HUD 1 Map Filters NONE Filters NONE Steam 1 RUN: bd67bf9d-d64d-47bb-a02e-252c1b85ac15